fUST/lending_fUST_20240318
["ID","MTS","AMOUNT","RATE_DAILY","PERIOD"]
[319438869,1710738640576,-4058.2,0.00019994,2]
[319438870,1710738640586,-1087.8,0.00019994,2]
[319438871,1710738640597,-648.78,0.00019994,2]
[319438872,1710738640606,-500.0,0.00019995,2]
[319438873,1710738640616,-500.0,0.00019995,2]
[319438874,1710738640627,-500.0,0.00019995,2]
[319438875,1710738640637,-500.0,0.00019995,2]
[319438876,1710738640648,-500.0,0.00019995,2]
[319438877,1710738640658,-500.0,0.00019995,2]
[319438878,1710738640668,-500.0,0.00019995,2]
[319438879,1710738640678,-500.0,0.00019995,2]
[319438880,1710738640688,-595.67,0.00019995,2]
[319438881,1710738640697,-500.0,0.00019995,2]
[319438882,1710738640707,-505.7220217,0.00019995,2]
[319438883,1710738640717,-500.0,0.00019995,2]
[319438884,1710738640728,-500.0,0.00019995,2]
[319438885,1710738640738,-643.27347398,0.00019995,2]
[319438886,1710738640748,-500.0,0.00019995,2]
[319438887,1710738640760,-500.0,0.00019995,2]
[319438888,1710738640771,-500.0,0.00019995,2]
[319438889,1710738640783,-786.9,0.00019995,2]
[319438890,1710738640794,-500.0,0.00019995,2]
[319438891,1710738640804,-500.0,0.00019995,2]
[319438892,1710738640814,-500.0,0.00019995,2]
[319438893,1710738640824,-500.0,0.00019995,2]
[319438894,1710738640835,-500.0,0.00019995,2]
[319438895,1710738640846,-210.08202818,0.00019996,2]
[319438896,1710738640857,-500.0,0.00019996,2]
[319438897,1710738640868,-500.0,0.00019996,2]
[319438898,1710738640878,-500.0,0.00019996,2]
[319438899,1710738640889,-500.0,0.00019996,2]
[319438900,1710738640899,-500.0,0.00019996,2]
[319438901,1710738640908,-500.0,0.00019996,2]
[319438902,1710738640918,-500.0,0.00019996,2]
[319438903,1710738640930,-595.67,0.00019996,2]
[319438904,1710738640939,-500.0,0.00019996,2]
[319438905,1710738640950,-500.0,0.00019996,2]
[319438906,1710738640960,-455.55433128,0.00019996,2]
[319438907,1710738640970,-500.0,0.00019996,2]
[319438908,1710738640980,-508.79526656,0.00019996,2]
[319438909,1710738640990,-500.0,0.00019996,2]
[319438910,1710738641000,-896.18,0.00019996,2]
[319438911,1710738641013,-500.0,0.00019996,2]
[319438912,1710738641023,-786.9,0.00019996,2]
[319438913,1710738641032,-500.0,0.00019996,2]
[319438914,1710738641042,-500.0,0.00019996,2]
[319438915,1710738641051,-178.58344384,0.00019996,2]
[319438916,1710738641061,-4058.2,0.00019996,2]
[319438917,1710738641070,-500.0,0.00019996,2]
[319438918,1710738641080,-1087.8,0.00019996,2]
[319438919,1710738641089,-648.78,0.00019996,2]
[319438920,1710738641099,-500.0,0.00019996,2]
[319438921,1710738641109,-269.28467502,0.00019996,2]
[319438922,1710738641120,-500.0,0.00019996,2]
[319438923,1710738641130,-500.0,0.00019997,2]
[319438924,1710738641140,-500.0,0.00019997,2]
[319438925,1710738641151,-406.77895264,0.00019997,2]
[319438926,1710738641162,-153.83376141,0.00019997,2]
[319438927,1710738641174,-500.0,0.00019997,2]
[319438928,1710738641185,-500.0,0.00019997,2]
[319438929,1710738641197,-393.28081579,0.00019997,2]
[319438930,1710738641207,-175.55198173,0.00019997,2]
[319438931,1710738641218,-500.0,0.00019997,2]
[319438932,1710738641229,-500.0,0.00019997,2]
[319438933,1710738641238,-176.32474178,0.00019997,2]
[319438934,1710738641249,-500.0,0.00019997,2]
[319438935,1710738641260,-500.0,0.00019997,2]
[319438936,1710738641269,-500.0,0.00019997,2]
[319438937,1710738641279,-500.0,0.00019997,2]
[319438938,1710738641290,-500.0,0.00019997,2]
[319438939,1710738641300,-500.0,0.00019997,2]
[319438940,1710738641310,-595.67,0.00019997,2]
[319438941,1710738641321,-595.67,0.00019997,2]
[319438942,1710738641331,-500.0,0.00019997,2]
[319438943,1710738641343,-500.0,0.00019997,2]
[319438944,1710738641352,-500.0,0.00019997,2]
[319438945,1710738641361,-442.09915206,0.00019997,2]
[319438946,1710738641370,-500.0,0.00019997,2]
[319438947,1710738641379,-500.0,0.00019997,2]
[319438948,1710738641389,-500.0,0.00019997,2]
[319438949,1710738641398,-500.0,0.00019997,2]
[319438950,1710738641408,-896.18,0.00019997,2]
[319438951,1710738641418,-896.18,0.00019997,2]
[319438952,1710738641430,-896.18,0.00019997,2]
[319438953,1710738641439,-500.0,0.00019997,2]
[319438954,1710738641449,-500.0,0.00019997,2]
[319438955,1710738641460,-786.9,0.00019997,2]
[319438956,1710738641469,-786.9,0.00019997,2]
[319438957,1710738641479,-500.0,0.00019997,2]
[319438958,1710738641489,-500.0,0.00019997,2]
[319438959,1710738641500,-442.01295843,0.00019997,2]
[319438960,1710738641511,-4058.2,0.00019997,2]
[319438961,1710738641521,-281.69217075,0.00019997,2]
[319438962,1710738641531,-4058.2,0.00019997,2]
[319438963,1710738641541,-2889.54304856,0.00019997,2]
[319438974,1710738643125,-1168.65695144,0.00019997,2]
[319438975,1710738643135,-1087.8,0.00019997,2]
[319438976,1710738643144,-1087.8,0.00019997,2]
[319438977,1710738643153,-1087.8,0.00019997,2]
[319438978,1710738643162,-648.78,0.00019997,2]
[319438979,1710738643170,-648.78,0.00019997,2]
[319438980,1710738643180,-648.78,0.00019997,2]
[319438981,1710738643189,-500.0,0.00019997,2]
[319438982,1710738643197,-500.0,0.00019997,2]
[319438983,1710738643206,-500.0,0.00019997,2]
[319438984,1710738643216,-233.76872593,0.00019997,2]
[319438985,1710738643226,-560.241434,0.00019998,2]
[319438986,1710738643236,-301.63215559,0.00019998,2]
[319438987,1710738643246,-327.59021518,0.00019998,2]
[319438988,1710738643257,-182.89662272,0.00019998,2]
[319438989,1710738643267,-225.6988564,0.00019998,2]
[319438991,1710738643278,-156.06819146,0.00019998,2]
[319438993,1710738643288,-155.38137119,0.00019998,2]
[319438994,1710738643298,-3221.82588032,0.00019998,2]
[319438995,1710738643307,-228.81482762,0.00019998,2]
[319438996,1710738643316,-155.27137124,0.00019998,2]
[319438997,1710738643325,-209.00523222,0.00019998,2]
[319438998,1710738643333,-178.55477072,0.00019998,2]
[319438999,1710738643342,-197.82027309,0.00019998,2]
[319439000,1710738643351,-155.38729388,0.00019998,2]
[319439001,1710738643360,-111.645827,0.00019998,2]
[319439029,1710738646562,-59.66588302,0.00019998,2]
[319439030,1710738646571,-241.6886044,0.00019998,2]
[319439031,1710738646580,-188.34226137,0.00019998,2]
[319439032,1710738646590,-165.8190204,0.00019998,2]
[319439033,1710738646600,-263.90144812,0.00019998,7]
[319439034,1710738646609,-155.42464174,0.00019998,2]
[319439035,1710738646618,-210.78876559,0.00019998,2]
[319439036,1710738646627,-5515.96998991,0.00019998,2]
[319439037,1710738646636,-155.31786284,0.00019998,2]
[319439038,1710738646645,-155.12391835,0.00019998,2]
[319439039,1710738646654,-155.06168537,0.00019998,2]
[319439040,1710738646663,-155.26903828,0.00019998,2]
[319439041,1710738646673,-155.09685916,0.00019998,2]
[319439042,1710738646682,-4.59842937,0.00019998,2]
[319439043,1710738739769,1578.8445508,0.000153,2]
[319439044,1710738757891,-1290.0,0.000153,2]
[319439045,1710738959990,-466.0,0.00015299,2]
[319439047,1710739292606,-5826.0,0.00015297,2]
[319439048,1710739362693,-806.9943883,0.00015295,2]
[319439049,1710739362716,-469.50912641,0.00015296,2]
[319439050,1710739362735,-3225.30829582,0.00015296,2]
[319439051,1710739362756,-1.18818947,0.000153,2]
[319439052,1710739434594,-2287.67775718,0.00015297,2]
[319439053,1710739434615,-2059.96096463,0.00015297,2]
[319439054,1710739434638,-80.36127819,0.000153,2]
[319439059,1710739565975,4716.0,0.00025,120]
[319439060,1710739700947,-1883.83497798,0.00015297,2]
[319439061,1710739700968,-283.16502202,0.00015298,2]
[319439062,1710739745308,-469.50912641,0.00015296,2]
[319439063,1710739745335,-280.87247282,0.00015297,2]
[319439064,1710739745363,-850.2093926,0.00015297,3]
[319439065,1710739745391,-49.60598154,0.000153,2]
[319439066,1710739745418,-581.16676106,0.00016522,2]
[319439067,1710739745447,-840.578154,0.00016523,2]
[319439068,1710739745474,-300.0,0.00017342,2]
[319439069,1710739745503,-15276.09173487,0.00017349,2]
[319439070,1710739745532,-24900.0,0.0001735,2]
[319439071,1710739745562,-250.0,0.00018141,2]
[319439133,1710739838301,-469.50912641,0.00019177,2]
[319439135,1710739838310,-581.16676106,0.00019177,2]
[319439137,1710739838319,-14.54548034,0.00019178,2]
[319439203,1710739846400,-485.45451966,0.00019178,2]
[319439204,1710739846410,-166.666666,0.00019178,2]
[319439205,1710739846420,-200.5769322,0.00019178,2]
[319439206,1710739846429,-153.0,0.000192,2]
[319439207,1710739846438,-153.0,0.000192,2]
[319439208,1710739846448,-306.0,0.000192,2]
[319439209,1710739846457,-153.0,0.000192,2]
[319439210,1710739846469,-72.90476368,0.000192,2]
[319439287,1710740727060,-321.9978383,0.00022,30]
[319439349,1710741032514,-1299.62357572,0.00016615,2]
[319439350,1710741032526,-469.50912641,0.00016616,2]
[319439353,1710741032536,-616.74209517,0.00016616,2]
[319439355,1710741032548,-581.16676106,0.00016617,2]
[319439357,1710741032558,-269.4604688,0.00016618,2]
[319439359,1710741032570,-710.00383952,0.00016619,2]
[319439361,1710741032581,-200.352672,0.00016621,2]
[319439363,1710741032590,-1165.2238495,0.00016972,2]
[319439364,1710741032600,-9697.11609981,0.00017304,2]
[319439366,1710741032612,-15202.88390019,0.00017304,2]
[319439368,1710741032622,-207.49370121,0.00017374,2]
[319439370,1710741032633,-520.465413,0.00017474,2]
[319439372,1710741032644,-247.68678754,0.00018886,2]
[319439374,1710741032654,-153.0,0.000189,2]
[319439376,1710741032664,-153.0,0.000189,2]
[319439378,1710741032675,-201.2032644,0.000189,2]
[319439380,1710741032685,-153.0,0.000189,2]
[319439382,1710741032696,-153.0,0.000189,2]
[319439384,1710741032707,-201.2032644,0.000189,2]
[319439386,1710741032717,-3098.85128401,0.000189,2]
[319439387,1710741032727,-153.0,0.000189,2]
[319439388,1710741032737,-201.2032644,0.000189,2]
[319439389,1710741032747,-153.0,0.00018904,2]
[319439390,1710741032757,-153.0,0.00018952,2]
[319439391,1710741032768,-153.0,0.00018952,2]
[319439392,1710741032778,-158.441836,0.00019178,2]
[319439393,1710741032789,-166.666666,0.00019178,2]
[319439394,1710741032799,-2073.05229131,0.000192,2]
[319439395,1710741032808,-153.6106027,0.000192,2]
[319439396,1710741032817,-306.4456061,0.000192,2]
[319439397,1710741032827,-166.666666,0.00019627,2]
[319439398,1710741032836,-582.0,0.000197,2]
[319439399,1710741032846,-15045.40854596,0.00019899,2]
[319439400,1710741032864,-1000.0,0.00019899,2]
[319439401,1710741032881,-2599.69949765,0.000199,2]
[319439402,1710741032893,-867.6994284,0.000199,2]
[319439403,1710741032903,-7966.16283253,0.00019978,2]
[319439404,1710741032914,-500.0,0.00019995,2]
[319439405,1710741032926,-319.97969645,0.00019995,2]
[319439406,1710741032940,-500.0,0.00019995,2]
[319439407,1710741032953,-500.0,0.00019995,2]
[319439408,1710741032965,-500.0,0.00019995,2]
[319439409,1710741032976,-500.0,0.00019995,2]
[319439410,1710741032988,-500.0,0.00019995,2]
[319439411,1710741032998,-500.0,0.00019995,2]
[319439412,1710741033008,-702.44,0.00019995,2]
[319439413,1710741033020,-702.44,0.00019995,2]
[319439414,1710741033032,-500.0,0.00019995,2]
[319439415,1710741033043,-500.0,0.00019995,2]
[319439416,1710741033054,-500.0,0.00019995,2]
[319439417,1710741033065,-500.0,0.00019995,2]
[319439418,1710741033078,-500.0,0.00019995,2]
[319439419,1710741033090,-2874.56,0.00019995,2]
[319439420,1710741033101,-2874.56,0.00019995,2]
[319439421,1710741033114,-770.53,0.00019995,2]
[319439422,1710741033127,-770.53,0.00019995,2]
[319439423,1710741033141,-500.0,0.00019995,2]
[319439424,1710741033152,-500.0,0.00019995,2]
[319439425,1710741033164,-500.0,0.00019995,2]
[319439426,1710741033175,-500.0,0.00019995,2]
[319439427,1710741033187,-309.9690031,0.00019996,2]
[319439428,1710741033198,-500.0,0.00019996,2]
[319439429,1710741033209,-557.39,0.00019996,2]
[319439430,1710741033220,-557.39,0.00019996,2]
[319439431,1710741033231,-510.75142636,0.00019997,2]
[319439432,1710741033241,-500.0,0.00019997,2]
[319439433,1710741033251,-500.0,0.00019997,2]
[319439434,1710741033261,-500.0,0.00019997,2]
[319439435,1710741033271,-500.0,0.00019997,2]
[319439436,1710741033281,-500.0,0.00019997,2]
[319439437,1710741033291,-500.0,0.00019997,2]
[319439438,1710741033301,-500.0,0.00019997,2]
[319439439,1710741033312,-500.0,0.00019997,2]
[319439440,1710741033322,-500.0,0.00019997,2]
[319439441,1710741033334,-500.0,0.00019997,2]
[319439442,1710741033345,-595.51396509,0.00019997,2]
[319439443,1710741033357,-500.0,0.00019997,2]
[319439444,1710741033367,-500.0,0.00019997,2]
[319439445,1710741033380,-501.86134588,0.00019997,2]
[319439446,1710741033390,-500.0,0.00019997,2]
[319439447,1710741033400,-500.0,0.00019997,2]
[319439448,1710741033411,-500.0,0.00019997,2]
[319439449,1710741033424,-505.58365309,0.00019997,2]
[319439450,1710741033434,-702.44,0.00019997,2]
[319439451,1710741033444,-702.44,0.00019997,2]
[319439452,1710741033453,-500.0,0.00019997,2]
[319439453,1710741033463,-500.0,0.00019997,2]
[319439454,1710741033473,-557.39,0.00019997,2]
[319439455,1710741033483,-557.39,0.00019997,2]
[319439456,1710741033493,-500.0,0.00019997,2]
[319439457,1710741033503,-500.0,0.00019997,2]
[319439458,1710741033513,-2874.56,0.00019997,2]
[319439459,1710741033523,-2874.56,0.00019997,2]
[319439460,1710741033533,-770.53,0.00019997,2]
[319439461,1710741033543,-770.53,0.00019997,2]
[319439462,1710741033553,-500.0,0.00019997,2]
[319439463,1710741033563,-500.0,0.00019997,2]
[319439464,1710741033574,-500.0,0.00019997,2]
[319439465,1710741033586,-500.0,0.00019997,2]
[319439466,1710741033596,-331.60963763,0.00019998,2]
[319439467,1710741033607,-1958.74969652,0.00019998,2]
[319439468,1710741033618,-155.14615153,0.00019998,2]
[319439469,1710741033628,-155.09756711,0.00019998,2]
[319439470,1710741033639,-180.36529286,0.00019998,2]
[319439471,1710741033777,-404.69308339,0.00019998,2]
[319439472,1710741033787,-277.80762921,0.00019998,2]
[319439473,1710741033796,-343.11428952,0.00019998,2]
[319439474,1710741033805,-155.4244367,0.00019998,2]
[319439475,1710741033814,-156.06497011,0.00019998,2]
[319439476,1710741033823,-535.81137078,0.00019998,2]
[319439477,1710741033832,-527.39699315,0.00019998,2]
[319439478,1710741033841,-184.71073954,0.00019998,2]
[319439479,1710741033851,-640.74288565,0.00019998,2]
[319439480,1710741033860,-3102.91825902,0.00019998,2]
[319439481,1710741033869,-174.43844772,0.00019998,2]
[319439482,1710741033878,-2482.30014144,0.00019998,2]
[319439483,1710741033889,-322.86949289,0.00019998,2]
[319439484,1710741033898,-902.00666087,0.00019998,2]
[319439485,1710741033906,-173.38122182,0.00019998,2]
[319439486,1710741033915,-191.22737972,0.00019998,2]
[319439487,1710741033924,-2606.07461529,0.00019998,2]
[319439488,1710741033933,-171.34587349,0.00019998,2]
[319439489,1710741033942,-598.25108759,0.00019998,2]
[319439490,1710741033951,-156.4132386,0.00019998,2]
[319439491,1710741033961,-748.46350622,0.00019998,2]
[319439492,1710741033970,-411.7364293,0.00019998,2]
[319439493,1710741033979,-681.71173581,0.00019998,2]
[319439494,1710741033988,-430.26757965,0.00019998,2]
[319439495,1710741033998,-1574.22564014,0.00019998,2]
[319439496,1710741034007,-289.37743373,0.00019998,2]
[319439497,1710741034016,-284.74757714,0.00019998,2]
[319439498,1710741034026,-301.67262626,0.00019998,2]
[319439499,1710741034036,-178.76159257,0.00019998,2]
[319439500,1710741034046,-159.85915058,0.00019998,2]
[319439501,1710741034055,-266.81659323,0.00019998,2]
[319439502,1710741034064,-179.47851805,0.00019998,2]
[319439503,1710741034073,-1743.22408094,0.00019998,2]
[319439504,1710741034082,-1086.09953587,0.00019998,2]
[319439505,1710741034091,-165.8190204,0.00019998,2]
[319439506,1710741034101,-241.6886044,0.00019998,2]
[319439507,1710741034110,-263.90144812,0.00019998,7]
[319439508,1710741034121,-188.34226137,0.00019998,2]
[319439509,1710741034132,-210.78876559,0.00019998,2]
[319439510,1710741034141,-155.42464174,0.00019998,2]
[319439511,1710741034151,-155.31786284,0.00019998,2]
[319439512,1710741034160,-155.06168537,0.00019998,2]
[319439513,1710741034172,-155.12391835,0.00019998,2]
[319439514,1710741034181,-970.59345097,0.00019998,2]
[319439515,1710741034191,-155.26903828,0.00019998,2]
[319439516,1710741034201,-155.09685916,0.00019998,2]
[319439517,1710741034211,-5515.96998991,0.00019998,2]
[319439518,1710741034220,-808.79552476,0.00019998,2]
[319439519,1710741034230,-1382.59840278,0.00019998,2]
[319439520,1710741034240,-1883.31226174,0.00019998,2]
[319439521,1710741034250,-816.00299383,0.00019998,2]
[319439522,1710741034259,-558.6632468,0.00019998,2]
[319439523,1710741034269,-853.59789355,0.00019998,3]
[319439524,1710741034278,-282.0016559,0.00019998,2]
[319439525,1710741034288,-8482.77510497,0.00019998,2]
[319439526,1710741034300,-174.33383685,0.00019998,2]
[319439527,1710741034309,-417.98424474,0.00019998,2]
[319439528,1710741034319,-500.0,0.00019998,2]
[319439529,1710741034328,-500.0,0.00019998,2]
[319439530,1710741034337,-500.0,0.00019998,2]
[319439531,1710741034346,-500.0,0.00019998,2]
[319439532,1710741034356,-500.0,0.00019998,2]
[319439533,1710741034365,-500.0,0.00019998,2]
[319439534,1710741034374,-500.0,0.00019998,2]
[319439535,1710741034384,-500.0,0.00019998,2]
[319439536,1710741034393,-500.0,0.00019998,2]
[319439537,1710741034403,-175.26916352,0.00019998,2]
[319439538,1710741034414,-702.44,0.00019998,2]
[319439539,1710741034424,-702.44,0.00019998,2]
[319439540,1710741034434,-702.44,0.00019998,2]
[319439541,1710741034444,-500.0,0.00019998,2]
[319439542,1710741034453,-500.0,0.00019998,2]
[319439543,1710741034463,-491.59924105,0.00019998,2]
[319439544,1710741034473,-557.39,0.00019998,2]
[319439545,1710741034482,-557.39,0.00019998,2]
[319439546,1710741034492,-557.39,0.00019998,2]
[319439547,1710741034501,-2874.56,0.00019998,2]
[319439548,1710741034510,-2874.56,0.00019998,2]
[319439549,1710741034520,-2874.56,0.00019998,2]
[319439550,1710741034529,-770.53,0.00019998,2]
[319439551,1710741034538,-770.53,0.00019998,2]
[319439552,1710741034547,-770.53,0.00019998,2]
[319439553,1710741034557,-500.0,0.00019998,2]
[319439554,1710741034566,-500.0,0.00019998,2]
[319439555,1710741034575,-500.0,0.00019998,2]
[319439556,1710741034585,-500.0,0.00019998,2]
[319439557,1710741034594,-500.0,0.00019998,2]
[319439558,1710741034603,-500.0,0.00019998,2]
[319439559,1710741034613,-500.0,0.00019999,2]
[319439560,1710741034622,-500.0,0.00019999,2]
[319439561,1710741034631,-500.0,0.00019999,2]
[319439562,1710741034640,-500.0,0.00019999,2]
[319439563,1710741034649,-500.0,0.00019999,2]
[319439564,1710741034659,-500.0,0.00019999,2]
[319439565,1710741034669,-500.0,0.00019999,2]
[319439566,1710741034678,-500.0,0.00019999,2]
[319439567,1710741034688,-500.0,0.00019999,2]
[319439568,1710741034697,-500.0,0.00019999,2]
[319439569,1710741034707,-500.0,0.00019999,2]
[319439570,1710741034715,-500.0,0.00019999,2]
[319439571,1710741034725,-500.0,0.00019999,2]
[319439572,1710741034734,-500.0,0.00019999,2]
[319439573,1710741034743,-500.0,0.00019999,2]
[319439574,1710741034752,-500.0,0.00019999,2]
[319439575,1710741034761,-511.34330703,0.00019999,2]
[319439576,1710741034770,-500.0,0.00019999,2]
[319439577,1710741034779,-500.0,0.00019999,2]
[319439578,1710741034788,-500.0,0.00019999,2]
[319439579,1710741034797,-500.0,0.00019999,2]
[319439580,1710741034806,-500.0,0.00019999,2]
[319439581,1710741034816,-222.27125699,0.00019999,2]
[319439582,1710741034825,-500.0,0.00019999,2]
[319439583,1710741034834,-500.0,0.00019999,2]
[319439584,1710741034843,-519.34148779,0.00019999,2]
[319439585,1710741034852,-500.0,0.00019999,2]
[319439586,1710741034861,-500.0,0.00019999,2]
[319439587,1710741034870,-500.0,0.00019999,2]
[319439588,1710741034879,-500.0,0.00019999,2]
[319439589,1710741034888,-584.25972406,0.00019999,2]
[319439590,1710741034897,-702.44,0.00019999,2]
[319439591,1710741034906,-702.44,0.00019999,2]
[319439592,1710741034916,-702.44,0.00019999,2]
[319439593,1710741034925,-702.44,0.00019999,2]
[319439594,1710741034934,-702.44,0.00019999,2]
[319439595,1710741034944,-702.44,0.00019999,2]
[319439596,1710741034953,-702.44,0.00019999,2]
[319439597,1710741034963,-702.44,0.00019999,2]
[319439598,1710741034973,-702.44,0.00019999,2]
[319439599,1710741034983,-702.44,0.00019999,2]
[319439600,1710741034993,-702.44,0.00019999,2]
[319439601,1710741035002,-702.44,0.00019999,2]
[319439602,1710741035011,-702.44,0.00019999,2]
[319439603,1710741035020,-702.44,0.00019999,2]
[319439604,1710741035030,-702.44,0.00019999,2]
[319439605,1710741035039,-702.44,0.00019999,2]
[319439606,1710741035049,-702.50302447,0.00019999,2]
[319439607,1710741035059,-557.39,0.00019999,2]
[319439608,1710741035068,-557.39,0.00019999,2]
[319439609,1710741035078,-557.39,0.00019999,2]
[319439610,1710741035089,-557.39,0.00019999,2]
[319439611,1710741035098,-557.39,0.00019999,2]
[319439612,1710741035108,-557.39,0.00019999,2]
[319439613,1710741035117,-557.39,0.00019999,2]
[319439614,1710741035128,-557.39,0.00019999,2]
[319439615,1710741035139,-557.39,0.00019999,2]
[319439616,1710741035148,-557.39,0.00019999,2]
[319439617,1710741035158,-557.39,0.00019999,2]
[319439618,1710741035168,-557.39,0.00019999,2]
[319439619,1710741035179,-557.39,0.00019999,2]
[319439620,1710741035189,-557.39,0.00019999,2]
[319439621,1710741035199,-557.39,0.00019999,2]
[319439622,1710741035209,-557.39,0.00019999,2]
[319439623,1710741035221,-557.55692776,0.00019999,2]
[319439624,1710741035231,-2874.56,0.00019999,2]
[319439625,1710741035240,-2874.56,0.00019999,2]
[319439626,1710741035250,-2874.56,0.00019999,2]
[319439627,1710741035259,-2874.56,0.00019999,2]
[319439628,1710741035269,-2874.56,0.00019999,2]
[319439629,1710741035279,-2874.56,0.00019999,2]
[319439630,1710741035288,-2874.56,0.00019999,2]
[319439631,1710741035298,-2874.56,0.00019999,2]
[319439632,1710741035307,-2874.56,0.00019999,2]
[319439633,1710741035317,-2874.56,0.00019999,2]
[319439634,1710741035326,-2874.56,0.00019999,2]
[319439635,1710741035335,-2874.56,0.00019999,2]
[319439636,1710741035344,-2874.56,0.00019999,2]
[319439637,1710741035353,-2874.56,0.00019999,2]
[319439638,1710741035363,-2874.56,0.00019999,2]
[319439639,1710741035372,-2874.56,0.00019999,2]
[319439640,1710741035381,-2874.67590011,0.00019999,2]
[319439641,1710741035391,-770.53,0.00019999,2]
[319439642,1710741035400,-770.53,0.00019999,2]
[319439643,1710741035409,-770.53,0.00019999,2]
[319439644,1710741035420,-770.53,0.00019999,2]
[319439645,1710741035430,-770.53,0.00019999,2]
[319439646,1710741035440,-770.53,0.00019999,2]
[319439647,1710741035449,-770.53,0.00019999,2]
[319439648,1710741035459,-770.53,0.00019999,2]
[319439649,1710741035468,-770.53,0.00019999,2]
[319439650,1710741035478,-770.53,0.00019999,2]
[319439651,1710741035487,-770.53,0.00019999,2]
[319439652,1710741035497,-770.53,0.00019999,2]
[319439653,1710741035506,-770.53,0.00019999,2]
[319439654,1710741035516,-770.53,0.00019999,2]
[319439655,1710741035525,-770.53,0.00019999,2]
[319439656,1710741035534,-770.53,0.00019999,2]
[319439657,1710741035544,-770.64573016,0.00019999,2]
[319439658,1710741035553,-500.0,0.00019999,2]
[319439659,1710741035563,-500.0,0.00019999,2]
[319439660,1710741035572,-500.0,0.00019999,2]
[319439661,1710741035582,-500.0,0.00019999,2]
[319439662,1710741035591,-632.88187862,0.00019999,2]
[319439663,1710741035601,-500.0,0.00019999,2]
[319439664,1710741035610,-500.0,0.00019999,2]
[319439665,1710741035619,-500.0,0.00019999,2]
[319439666,1710741035629,-500.0,0.00019999,2]
[319439667,1710741035638,-500.0,0.00019999,2]
[319439668,1710741035647,-500.0,0.00019999,2]
[319439669,1710741035657,-500.0,0.00019999,2]
[319439670,1710741035667,-500.0,0.00019999,2]
[319439671,1710741035676,-500.0,0.00019999,2]
[319439672,1710741035686,-500.0,0.00019999,2]
[319439673,1710741035695,-529.47400315,0.00019999,2]
[319439674,1710741035705,-414194.85179526,0.0002,10]
[319439692,1710741038546,-5025.0,0.0002,10]
[319439693,1710741038558,-4546.81304313,0.0002,10]
[319439694,1710741038570,-2267.37553439,0.0002,10]
[319439695,1710741038581,-3366.38268189,0.0002,10]
[319439753,1710741046616,-1300.89889065,0.00019999,2]
[319439754,1710741046626,-616.60134921,0.00019999,2]
[319439755,1710741046636,-21783.49217441,0.0002,10]
[319440171,1710741884795,-200.0,0.0002,10]
[319440172,1710741891192,-2000.0,0.0002,10]
[319440173,1710741895005,-20000.0,0.0002,10]
[319440174,1710741933805,-944000.0,0.0002,10]
[319440275,1710742238668,-469.50912641,0.00018421,2]
[319440276,1710742238678,-1710.79661155,0.00018422,2]
[319440277,1710742238687,-948.62789002,0.00018523,2]
[319440288,1710742240717,-2597.2489709,0.00018523,2]
[319440289,1710742240729,-7782.53572381,0.00018523,2]
[319440295,1710742243772,-13571.58741527,0.00018523,2]
[319440296,1710742243781,-260.232706,0.00018698,2]
[319440297,1710742243790,-158.441836,0.00019178,2]
[319440298,1710742243799,-158.441836,0.00019178,2]
[319440299,1710742243808,-166.666666,0.00019178,2]